[Event "MCR rapid mládeže 2023 U16"]
[Site "Harachov, Czech Republic"]
[Date "2023.09.10"]
[Round "8.17"]
[White "Kozdon, Marek"]
[Black "Tejnor, Martin"]
[Result "1/2-1/2"]
[TimeControl "20min+5s/move"]
[WhiteElo "1548"]
[BlackElo "1434"]

1. d4 {[%clk 00:20:08]} {[%emt 00:00:02]} Nf6 {[%clk 00:20:09]} {[%emt
00:00:02]} 2. c4 {[%clk 00:20:09]} {[%emt 00:00:04]} g6 {[%clk 00:20:12]}
{[%emt 00:00:01]} 3. Nc3 {[%clk 00:20:12]} {[%emt 00:00:02]} d5 {[%clk
00:20:16]} {[%emt 00:00:01]} 4. e3 {[%clk 00:19:12]} {[%emt 00:01:05]} Bg7
{[%clk 00:20:13]} {[%emt 00:00:09]} 5. Qb3 {[%clk 00:19:14]} {[%emt 00:00:02]}
dxc4 {[%clk 00:19:30]} {[%emt 00:00:48]} 6. Bxc4 {[%clk 00:19:16]} {[%emt
00:00:03]} O-O {[%clk 00:19:33]} {[%emt 00:00:03]} 7. Nf3 {[%clk 00:19:12]}
{[%emt 00:00:08]} Nc6 {[%clk 00:18:13]} {[%emt 00:01:25]} 8. Be2 {[%clk
00:18:24]} {[%emt 00:00:53]} Bf5 {[%clk 00:17:17]} {[%emt 00:01:02]} 9. O-O
{[%clk 00:17:03]} {[%emt 00:01:26]} Rb8 {[%clk 00:15:34]} {[%emt 00:01:48]} 10.
Bd2 {[%clk 00:16:01]} {[%emt 00:01:07]} Ne4 {[%clk 00:14:03]} {[%emt 00:01:36]}
11. Nxe4 {[%clk 00:14:52]} {[%emt 00:01:13]} Bxe4 {[%clk 00:14:04]} {[%emt
00:00:04]} 12. Rfd1 {[%clk 00:13:33]} {[%emt 00:01:24]} e6 {[%clk 00:13:29]}
{[%emt 00:00:40]} 13. Rac1 {[%clk 00:13:17]} {[%emt 00:00:22]} Qe7 {[%clk
00:12:49]} {[%emt 00:00:45]} 14. a3 {[%clk 00:11:50]} {[%emt 00:01:32]} Rfd8
{[%clk 00:12:23]} {[%emt 00:00:30]} 15. Bc3 {[%clk 00:08:36]} {[%emt 00:03:20]}
h6 {[%clk 00:10:22]} {[%emt 00:02:06]} 16. Nd2 {[%clk 00:07:18]} {[%emt
00:01:22]} Bd5 {[%clk 00:10:11]} {[%emt 00:00:16]} 17. Qc2 {[%clk 00:07:10]}
{[%emt 00:00:13]} e5 {[%clk 00:08:51]} {[%emt 00:01:25]} 18. dxe5 {[%clk
00:06:02]} {[%emt 00:01:14]} Nxe5 {[%clk 00:07:03]} {[%emt 00:01:52]} 19. e4
{[%clk 00:05:06]} {[%emt 00:01:00]} Bc6 {[%clk 00:06:55]} {[%emt 00:00:14]} 20.
f3 {[%clk 00:04:04]} {[%emt 00:01:08]} a6 {[%clk 00:04:33]} {[%emt 00:02:26]}
21. Nf1 {[%clk 00:03:15]} {[%emt 00:00:53]} Rxd1 {[%clk 00:02:36]} {[%emt
00:02:02]} 22. Rxd1 {[%clk 00:03:18]} {[%emt 00:00:03]} Rd8 {[%clk 00:02:40]}
{[%emt 00:00:01]} 23. Rxd8+ {[%clk 00:02:23]} {[%emt 00:01:00]} Qxd8 {[%clk
00:02:44]} {[%emt 00:00:02]} 24. Qd1 {[%clk 00:02:09]} {[%emt 00:00:18]} Qxd1
{[%clk 00:02:36]} {[%emt 00:00:13]} 25. Bxd1 {[%clk 00:02:11]} {[%emt
00:00:03]} Nd3 {[%clk 00:02:24]} {[%emt 00:00:16]} 26. Be2 {[%clk 00:01:36]}
{[%emt 00:00:40]} Bxc3 {[%clk 00:02:26]} {[%emt 00:00:04]} 27. bxc3 {[%clk
00:01:38]} {[%emt 00:00:03]} Ne5 {[%clk 00:02:18]} {[%emt 00:00:13]} 28. Ne3
{[%clk 00:01:37]} {[%emt 00:00:05]} Kg7 {[%clk 00:02:20]} {[%emt 00:00:03]} 29.
Kf2 {[%clk 00:01:37]} {[%emt 00:00:05]} Nd7 {[%clk 00:02:00]} {[%emt 00:00:25]}
30. Nc4 {[%clk 00:00:58]} {[%emt 00:00:44]} b6 {[%clk 00:01:44]} {[%emt
00:00:22]} 31. Ke3 {[%clk 00:00:58]} {[%emt 00:00:04]} Bb5 {[%clk 00:01:40]}
{[%emt 00:00:09]} 32. Bd3 {[%clk 00:00:35]} {[%emt 00:00:29]} Kf6 {[%clk
00:01:41]} {[%emt 00:00:04]} 33. Nb2 {[%clk 00:00:35]} {[%emt 00:00:05]} Bc6
{[%clk 00:01:36]} {[%emt 00:00:10]} 34. Kd4 {[%clk 00:00:28]} {[%emt 00:00:12]}
Ne5 {[%clk 00:01:35]} {[%emt 00:00:06]} 35. Be2 {[%clk 00:00:26]} {[%emt
00:00:07]} Bb7 {[%clk 00:01:36]} {[%emt 00:00:04]} 36. Nc4 {[%clk 00:00:27]}
{[%emt 00:00:04]} Nxc4 {[%clk 00:01:29]} {[%emt 00:00:11]} 37. Bxc4 {[%clk
00:00:30]} {[%emt 00:00:02]} c5+ {[%clk 00:01:27]} {[%emt 00:00:07]} 38. Ke3
{[%clk 00:00:33]} {[%emt 00:00:02]} b5 {[%clk 00:01:29]} {[%emt 00:00:04]} 39.
Bb3 {[%clk 00:00:35]} {[%emt 00:00:02]} a5 {[%clk 00:01:26]} {[%emt 00:00:07]}
40. g4 {[%clk 00:00:35]} {[%emt 00:00:05]} Ke7 {[%clk 00:01:23]} {[%emt
00:00:08]} 41. f4 {[%clk 00:00:37]} {[%emt 00:00:03]} f6 {[%clk 00:01:11]}
{[%emt 00:00:18]} 42. Bc2 {[%clk 00:00:38]} {[%emt 00:00:03]} Ke6 {[%clk
00:01:06]} {[%emt 00:00:10]} 43. h4 {[%clk 00:00:39]} {[%emt 00:00:04]} g5
{[%clk 00:00:53]} {[%emt 00:00:18]} 44. hxg5 {[%clk 00:00:33]} {[%emt
00:00:12]} hxg5 {[%clk 00:00:57]} {[%emt 00:00:01]} 45. Bd3 {[%clk 00:00:34]}
{[%emt 00:00:03]} Bc6 {[%clk 00:00:57]} {[%emt 00:00:06]} 46. Bc2 {[%clk
00:00:36]} {[%emt 00:00:03]} Kd6 {[%clk 00:00:41]} {[%emt 00:00:21]} 47. Bb3
{[%clk 00:00:35]} {[%emt 00:00:06]} a4 {[%clk 00:00:41]} {[%emt 00:00:05]}
1/2-1/2

[Event "MCR rapid mládeže 2023 U16"]
[Site "Harachov, Czech Republic"]
[Date "2023.09.10"]
[Round "8.18"]
[White "Mydlar, Matej"]
[Black "Chernyy, Andrey"]
[Result "1-0"]
[TimeControl "20min+5s/move"]
[WhiteElo "1711"]
[BlackElo "1582"]

1. e4 {[%clk 00:20:08]} {[%emt 00:00:02]} e5 {[%clk 00:20:09]} {[%emt
00:00:02]} 2. Nf3 {[%clk 00:20:12]} Nc6 {[%clk 00:20:13]} {[%emt 00:00:02]} 3.
Bb5 {[%clk 00:20:15]} {[%emt 00:00:02]} a6 {[%clk 00:20:17]} {[%emt 00:00:01]}
4. Ba4 {[%clk 00:20:19]} {[%emt 00:00:01]} Nf6 {[%clk 00:20:18]} {[%emt
00:00:04]} 5. O-O {[%clk 00:20:20]} {[%emt 00:00:03]} b5 {[%clk 00:20:22]}
{[%emt 00:00:02]} 6. Bb3 {[%clk 00:20:24]} Be7 {[%clk 00:20:17]} {[%emt
00:00:11]} 7. Re1 {[%clk 00:20:27]} {[%emt 00:00:01]} O-O {[%clk 00:20:17]}
{[%emt 00:00:04]} 8. c3 {[%clk 00:20:31]} {[%emt 00:00:01]} d6 {[%clk
00:20:20]} {[%emt 00:00:02]} 9. h3 {[%clk 00:20:34]} {[%emt 00:00:01]} Nb8
{[%clk 00:20:12]} {[%emt 00:00:14]} 10. d4 {[%clk 00:20:29]} {[%emt 00:00:10]}
Nbd7 {[%clk 00:20:12]} {[%emt 00:00:05]} 11. Nbd2 {[%clk 00:20:29]} {[%emt
00:00:05]} Bb7 {[%clk 00:20:02]} {[%emt 00:00:15]} 12. Bc2 {[%clk 00:19:43]}
{[%emt 00:00:52]} Re8 {[%clk 00:19:45]} {[%emt 00:00:21]} 13. Nf1 {[%clk
00:19:43]} {[%emt 00:00:05]} Bf8 {[%clk 00:19:49]} {[%emt 00:00:02]} 14. Ng3
{[%clk 00:19:43]} {[%emt 00:00:05]} g6 {[%clk 00:19:14]} {[%emt 00:00:40]} 15.
Nh2 {[%clk 00:18:09]} {[%emt 00:01:38]} c5 {[%clk 00:18:26]} {[%emt 00:00:54]}
16. d5 {[%clk 00:18:04]} {[%emt 00:00:08]} Bg7 {[%clk 00:18:09]} {[%emt
00:00:23]} 17. f4 {[%clk 00:18:05]} {[%emt 00:00:04]} exf4 {[%clk 00:17:48]}
{[%emt 00:00:26]} 18. Bxf4 {[%clk 00:18:07]} {[%emt 00:00:03]} Ne5 {[%clk
00:17:37]} {[%emt 00:00:16]} 19. Nf3 {[%clk 00:18:05]} {[%emt 00:00:07]} Nfd7
{[%clk 00:16:00]} {[%emt 00:01:43]} 20. Qc1 {[%clk 00:11:45]} {[%emt 00:06:25]}
Nxf3+ {[%clk 00:14:50]} {[%emt 00:01:15]} 21. gxf3 {[%clk 00:11:47]} {[%emt
00:00:02]} Be5 {[%clk 00:13:42]} {[%emt 00:01:13]} 22. Kg2 {[%clk 00:11:28]}
{[%emt 00:00:25]} Bxf4 {[%clk 00:08:25]} {[%emt 00:05:22]} 23. Qxf4 {[%clk
00:11:31]} {[%emt 00:00:02]} Qf6 {[%clk 00:07:56]} {[%emt 00:00:33]} 24. Qxf6
{[%clk 00:10:27]} {[%emt 00:01:09]} Nxf6 {[%clk 00:07:59]} {[%emt 00:00:02]} 25.
b3 {[%clk 00:10:13]} {[%emt 00:00:19]} Nd7 {[%clk 00:07:42]} {[%emt 00:00:22]}
26. Rad1 {[%clk 00:07:59]} {[%emt 00:02:19]} Rac8 {[%clk 00:07:35]} {[%emt
00:00:13]} 27. c4 {[%clk 00:07:15]} {[%emt 00:00:48]} b4 {[%clk 00:07:23]}
{[%emt 00:00:17]} 28. f4 {[%clk 00:07:09]} {[%emt 00:00:10]} f6 {[%clk
00:06:59]} {[%emt 00:00:30]} 29. Kf2 {[%clk 00:05:57]} {[%emt 00:01:17]} Kf7
{[%clk 00:06:36]} {[%emt 00:00:29]} 30. Rc1 {[%clk 00:05:17]} {[%emt 00:00:45]}
Re7 {[%clk 00:02:57]} {[%emt 00:03:43]} 31. Re2 {[%clk 00:03:19]} {[%emt
00:02:04]} Rce8 {[%clk 00:02:01]} {[%emt 00:01:00]} 32. Rce1 {[%clk 00:03:23]}
{[%emt 00:00:02]} Kg7 {[%clk 00:01:32]} {[%emt 00:00:34]} 33. h4 {[%clk
00:03:00]} {[%emt 00:00:28]} Kf7 {[%clk 00:01:12]} {[%emt 00:00:24]} 34. h5
{[%clk 00:02:57]} {[%emt 00:00:08]} Kg8 {[%clk 00:00:52]} {[%emt 00:00:25]} 35.
h6 {[%clk 00:02:47]} {[%emt 00:00:15]} Kf7 {[%clk 00:00:44]} {[%emt 00:00:13]}
36. Re3 {[%clk 00:02:50]} {[%emt 00:00:02]} Kg8 {[%clk 00:00:38]} {[%emt
00:00:10]} 37. Bd1 {[%clk 00:02:52]} {[%emt 00:00:03]} Bc8 {[%clk 00:00:38]}
{[%emt 00:00:06]} 38. Bg4 {[%clk 00:02:20]} {[%emt 00:00:36]} Nb6 {[%clk
00:00:34]} {[%emt 00:00:10]} 39. Bxc8 {[%clk 00:02:18]} {[%emt 00:00:07]} Nxc8
{[%clk 00:00:38]} {[%emt 00:00:01]} 40. Kf3 {[%clk 00:01:31]} {[%emt 00:00:51]}
Nb6 {[%clk 00:00:39]} {[%emt 00:00:05]} 41. Rg1 {[%clk 00:01:30]} {[%emt
00:00:05]} Kf7 {[%clk 00:00:36]} {[%emt 00:00:08]} 42. Rg2 {[%clk 00:01:28]}
{[%emt 00:00:08]} Nd7 {[%clk 00:00:33]} {[%emt 00:00:08]} 43. Ree2 {[%clk
00:01:17]} {[%emt 00:00:15]} Kf8 {[%clk 00:00:33]} {[%emt 00:00:06]} 44. Rg1
{[%clk 00:01:20]} {[%emt 00:00:02]} Kf7 {[%clk 00:00:35]} {[%emt 00:00:03]} 45.
Reg2 {[%clk 00:01:05]} {[%emt 00:00:18]} Kf8 {[%clk 00:00:21]} {[%emt
00:00:20]} 46. Ra1 {[%clk 00:01:01]} {[%emt 00:00:09]} a5 {[%clk 00:00:21]}
{[%emt 00:00:06]} 47. Rd1 {[%clk 00:01:01]} {[%emt 00:00:05]} Kf7 {[%clk
00:00:23]} {[%emt 00:00:02]} 48. Rc1 {[%clk 00:01:04]} {[%emt 00:00:02]} Kf8
{[%clk 00:00:25]} {[%emt 00:00:04]} 49. Rcg1 {[%clk 00:01:08]} Kf7 {[%clk
00:00:26]} {[%emt 00:00:04]} 50. Nf5 {[%clk 00:01:09]} {[%emt 00:00:05]} Kg8
{[%clk 00:00:15]} {[%emt 00:00:15]} 51. Nxd6 {[%clk 00:01:04]} {[%emt
00:00:10]} Rd8 {[%clk 00:00:11]} {[%emt 00:00:08]} 52. Nf5 {[%clk 00:01:07]}
{[%emt 00:00:03]} Rf7 {[%clk 00:00:14]} {[%emt 00:00:03]} 53. Ne3 {[%clk
00:00:24]} {[%emt 00:00:46]} Re7 {[%clk 00:00:10]} {[%emt 00:00:10]} 54. Ng4
{[%clk 00:00:24]} {[%emt 00:00:05]} Rde8 {[%clk 00:00:09]} {[%emt 00:00:07]} 55.
Re2 {[%clk 00:00:27]} {[%emt 00:00:01]} Kf7 {[%clk 00:00:12]} {[%emt 00:00:03]}
56. Rge1 {[%clk 00:00:30]} {[%emt 00:00:02]} Nb6 {[%clk 00:00:10]} {[%emt
00:00:07]} 57. e5 {[%clk 00:00:33]} {[%emt 00:00:02]} fxe5 {[%clk 00:00:12]}
{[%emt 00:00:04]} 58. fxe5 {[%clk 00:00:20]} {[%emt 00:00:16]} Kg8 {[%clk
00:00:12]} {[%emt 00:00:05]} 59. Kg3 {[%clk 00:00:16]} {[%emt 00:00:10]} Nd7
{[%clk 00:00:13]} {[%emt 00:00:04]} 60. e6 {[%clk 00:00:19]} {[%emt 00:00:02]}
Nb6 {[%clk 00:00:13]} {[%emt 00:00:04]} 61. Nf6+ {[%clk 00:00:23]} {[%emt
00:00:02]} Kf8 {[%clk 00:00:16]} {[%emt 00:00:01]} 62. Nxe8 {[%clk 00:00:26]}
{[%emt 00:00:02]} Kxe8 {[%clk 00:00:20]} {[%emt 00:00:01]} 63. Rf1 {[%clk
00:00:29]} {[%emt 00:00:02]} Kd8 {[%clk 00:00:20]} {[%emt 00:00:05]} 64. Ref2
{[%clk 00:00:33]} {[%emt 00:00:01]} Kc7 {[%clk 00:00:24]} {[%emt 00:00:01]} 65.
Rf7 {[%clk 00:00:36]} {[%emt 00:00:02]} Kd6 {[%clk 00:00:28]} 66. Rxe7 Kxe7
{[%clk 00:00:32]} 67. Rf8 {[%clk 00:00:44]} {[%emt 00:00:01]} Ke8 {[%clk
00:00:36]} {[%emt 00:00:01]} 1-0

[Event "MCR rapid mládeže 2023 U16"]
[Site "Harachov, Czech Republic"]
[Date "2023.09.10"]
[Round "8.19"]
[White "Sochor, Antonin"]
[Black "Sotek, Matej"]
[Result "1-0"]
[TimeControl "20min+5s/move"]
[WhiteElo "1480"]
[BlackElo "1410"]

1. Nf3 {[%clk 00:20:06]} {[%emt 00:00:03]} d5 {[%clk 00:20:09]} {[%emt
00:00:03]} 2. g3 {[%clk 00:20:06]} {[%emt 00:00:05]} Nf6 {[%clk 00:20:06]}
{[%emt 00:00:07]} 3. Bg2 {[%clk 00:20:05]} {[%emt 00:00:05]} Bf5 {[%clk
00:19:59]} {[%emt 00:00:13]} 4. O-O {[%clk 00:20:07]} {[%emt 00:00:04]} e6
{[%clk 00:20:03]} 5. d3 {[%clk 00:20:10]} {[%emt 00:00:03]} c5 {[%clk
00:20:02]} {[%emt 00:00:06]} 6. Nfd2 {[%clk 00:20:13]} {[%emt 00:00:02]} Nc6
{[%clk 00:19:39]} {[%emt 00:00:27]} 7. e4 {[%clk 00:20:16]} {[%emt 00:00:02]}
Bg6 {[%clk 00:18:54]} {[%emt 00:00:51]} 8. Nc3 {[%clk 00:20:18]} {[%emt
00:00:02]} d4 {[%clk 00:18:08]} {[%emt 00:00:51]} 9. Ne2 {[%clk 00:20:18]}
{[%emt 00:00:05]} e5 {[%clk 00:17:39]} {[%emt 00:00:35]} 10. f4 {[%clk
00:20:18]} {[%emt 00:00:04]} Bh5 {[%clk 00:16:30]} {[%emt 00:01:14]} 11. h3
{[%clk 00:20:15]} {[%emt 00:00:08]} Bxe2 {[%clk 00:16:29]} {[%emt 00:00:06]} 12.
Qxe2 {[%clk 00:20:18]} {[%emt 00:00:02]} Bd6 {[%clk 00:15:40]} {[%emt
00:00:54]} 13. Nf3 {[%clk 00:20:04]} {[%emt 00:00:18]} Nh5 {[%clk 00:14:06]}
{[%emt 00:01:40]} 14. Nxe5 {[%clk 00:18:11]} {[%emt 00:01:57]} Nxg3 {[%clk
00:13:02]} {[%emt 00:01:09]} 15. Qf3 {[%clk 00:16:24]} {[%emt 00:01:50]} Nxf1
{[%clk 00:13:00]} {[%emt 00:00:09]} 16. Nxc6 {[%clk 00:16:23]} {[%emt
00:00:06]} bxc6 {[%clk 00:13:04]} {[%emt 00:00:01]} 17. e5 {[%clk 00:16:24]}
{[%emt 00:00:04]} O-O {[%clk 00:10:20]} {[%emt 00:02:49]} 18. Qxf1 {[%clk
00:16:16]} {[%emt 00:00:13]} Bc7 {[%clk 00:09:53]} {[%emt 00:00:32]} 19. Kh1
{[%clk 00:15:31]} {[%emt 00:00:49]} Qe7 {[%clk 00:08:15]} {[%emt 00:01:44]} 20.
Bxc6 {[%clk 00:14:20]} {[%emt 00:01:16]} Rab8 {[%clk 00:07:53]} {[%emt
00:00:27]} 21. b3 {[%clk 00:14:08]} {[%emt 00:00:17]} Rb6 {[%clk 00:07:44]}
{[%emt 00:00:15]} 22. Bd5 {[%clk 00:14:02]} {[%emt 00:00:10]} Qd7 {[%clk
00:07:19]} {[%emt 00:00:30]} 23. Qg2 {[%clk 00:13:07]} {[%emt 00:00:59]} Rh6
{[%clk 00:06:52]} {[%emt 00:00:33]} 24. f5 {[%clk 00:11:01]} {[%emt 00:02:11]}
Rxh3+ {[%clk 00:06:09]} {[%emt 00:00:49]} 25. Qxh3 {[%clk 00:10:17]} {[%emt
00:00:48]} Qxd5+ {[%clk 00:06:13]} {[%emt 00:00:01]} 26. Qg2 {[%clk 00:10:20]}
{[%emt 00:00:02]} Qxe5 {[%clk 00:06:01]} {[%emt 00:00:18]} 27. Bh6 {[%clk
00:09:26]} {[%emt 00:00:57]} Re8 {[%clk 00:05:10]} {[%emt 00:00:57]} 28. Rf1
{[%clk 00:05:33]} {[%emt 00:03:55]} Qh2+ {[%emt 00:03:12]} 29. Qxh2 {[%clk
00:05:02]} {[%emt 00:00:35]} Bxh2 {[%clk 00:02:12]} {[%emt 00:00:01]} 30. Kxh2
{[%clk 00:03:17]} {[%emt 00:01:49]} gxh6 {[%clk 00:02:16]} {[%emt 00:00:01]} 31.
Rf2 {[%clk 00:03:15]} {[%emt 00:00:07]} Kg7 {[%clk 00:02:16]} {[%emt 00:00:05]}
32. Kg3 {[%clk 00:03:18]} {[%emt 00:00:02]} Kf6 {[%clk 00:02:07]} {[%emt
00:00:15]} 33. Kf4 {[%clk 00:03:17]} {[%emt 00:00:04]} Re5 {[%clk 00:01:40]}
{[%emt 00:00:33]} 34. Kg4 {[%clk 00:02:28]} {[%emt 00:00:54]} h5+ {[%clk
00:01:36]} {[%emt 00:00:09]} 35. Kh4 {[%clk 00:02:23]} {[%emt 00:00:10]} Rxf5
{[%clk 00:01:38]} {[%emt 00:00:03]} 36. Re2 {[%clk 00:02:24]} {[%emt 00:00:05]}
Re5 {[%clk 00:01:42]} {[%emt 00:00:01]} 37. Rf2+ {[%clk 00:02:27]} {[%emt
00:00:01]} Ke6 {[%clk 00:01:46]} {[%emt 00:00:01]} 38. Rf4 {[%clk 00:02:20]}
{[%emt 00:00:12]} f6 {[%clk 00:01:09]} {[%emt 00:00:41]} 39. b4 {[%clk
00:02:06]} {[%emt 00:00:19]} Rf5 {[%clk 00:00:22]} {[%emt 00:00:52]} 40. Re4+
{[%clk 00:02:00]} {[%emt 00:00:11]} Re5 {[%emt 00:00:16]} 41. bxc5 {[%clk
00:01:41]} {[%emt 00:00:23]} Rxe4+ {[%clk 00:00:16]} {[%emt 00:00:01]} 42. dxe4
{[%clk 00:01:43]} {[%emt 00:00:03]} a6 {[%clk 00:00:18]} {[%emt 00:00:04]} 43.
Kxh5 {[%clk 00:01:45]} {[%emt 00:00:02]} a5 {[%clk 00:00:21]} {[%emt 00:00:02]}
44. a4 {[%clk 00:01:44]} {[%emt 00:00:06]} Ke5 {[%clk 00:00:25]} {[%emt
00:00:01]} 45. Kh4 {[%clk 00:01:41]} {[%emt 00:00:08]} Ke6 {[%clk 00:00:29]}
{[%emt 00:00:01]} 46. Kg4 {[%clk 00:01:44]} {[%emt 00:00:01]} Kd7 {[%clk
00:00:30]} {[%emt 00:00:05]} 47. Kf5 {[%clk 00:01:38]} {[%emt 00:00:10]} h5
{[%clk 00:00:28]} {[%emt 00:00:07]} 48. Kxf6 {[%clk 00:01:04]} {[%emt
00:00:40]} h4 {[%clk 00:00:32]} 49. e5 {[%clk 00:01:07]} {[%emt 00:00:02]} h3
{[%clk 00:00:35]} {[%emt 00:00:02]} 50. e6+ {[%clk 00:01:11]} {[%emt 00:00:01]}
Kc7 {[%clk 00:00:13]} {[%emt 00:00:28]} 51. e7 {[%clk 00:01:15]} {[%emt
00:00:01]} h2 {[%clk 00:00:17]} {[%emt 00:00:01]} 52. e8=Q {[%clk 00:00:53]}
{[%emt 00:00:26]} h1=Q {[%clk 00:00:21]} 53. Qe7+ {[%clk 00:00:48]} {[%emt
00:00:10]} Kc8 {[%emt 00:00:20]} 54. Qe6+ {[%clk 00:00:45]} {[%emt 00:00:07]}
Kd8 {[%clk 00:00:08]} {[%emt 00:00:04]} 55. Qd6+ {[%clk 00:00:40]} {[%emt
00:00:10]} Kc8 {[%clk 00:00:11]} {[%emt 00:00:03]} 56. Qa6+ {[%clk 00:00:43]}
{[%emt 00:00:02]} Kb8 {[%emt 00:00:03]} 57. Qb6+ {[%emt 00:00:05]} Kc8 {[%clk
00:00:00]} {[%emt 00:00:04]} 1-0